[Event "*** MasterClass Titled Tuesday Blitz"]
[Site "Chess.com"]
[Date "2017.12.05"]
[Round "2"]
[White "ENEASZ"]
[Black "HarutyunianTigranK"]
[Result "1-0"]
[WhiteElo "2416"]
[BlackElo "2534"]
[TimeControl "180+2"]
[EndTime "14:37:50 PST"]
[Termination "ENEASZ won by resignation"]

1. e4 {[%clk 0:03:01.9]} 1... e5 {[%clk 0:03:00.5]} 2. Nf3 {[%clk 0:03:02]} 2...
Nc6 {[%clk 0:03:02]} 3. Bc4 {[%clk 0:03:02.6]} 3... Bc5 {[%clk 0:03:02.2]} 4. c3
{[%clk 0:03:03.5]} 4... Nf6 {[%clk 0:03:03]} 5. d4 {[%clk 0:03:04.6]} 5... exd4
{[%clk 0:03:03.5]} 6. O-O {[%clk 0:03:06.1]} 6... Nxe4 {[%clk 0:02:49.8]} 7.
cxd4 {[%clk 0:03:06.2]} 7... Bb6 {[%clk 0:02:04.9]} 8. d5 {[%clk 0:03:05.9]}
8... Ne7 {[%clk 0:02:05.3]} 9. Qe2 {[%clk 0:02:33.4]} 9... Nd6 {[%clk 0:02:06]}
10. Bd3 {[%clk 0:02:33.5]} 10... h6 {[%clk 0:01:22.8]} 11. Re1 {[%clk
0:02:31.5]} 11... Kf8 {[%clk 0:01:24]} 12. Nc3 {[%clk 0:02:31.5]} 12... Ndf5
{[%clk 0:01:24.4]} 13. b3 {[%clk 0:01:32]} 13... d6 {[%clk 0:01:23.5]} 14. Bb2
{[%clk 0:01:33]} 14... Nd4 {[%clk 0:01:12.2]} 15. Nxd4 {[%clk 0:01:22.1]} 15...
Bxd4 {[%clk 0:01:14.1]} 16. Rad1 {[%clk 0:01:21.3]} 16... Bf6 {[%clk 0:01:04.8]}
17. Ne4 {[%clk 0:01:14]} 17... Bxb2 {[%clk 0:01:05.2]} 18. Qxb2 {[%clk
0:01:15.9]} 18... Bf5 {[%clk 0:01:04.9]} 19. Ng3 {[%clk 0:01:00.7]} 19... Bg4
{[%clk 0:01:05.4]} 20. f3 {[%clk 0:00:56.6]} 20... Bd7 {[%clk 0:01:05.1]} 21.
Qd4 {[%clk 0:00:56.9]} 21... h5 {[%clk 0:01:03.7]} 22. h4 {[%clk 0:00:57.2]}
22... Rh6 {[%clk 0:01:02.2]} 23. Re3 {[%clk 0:00:57]} 23... Ng6 {[%clk
0:01:00.8]} 24. Bxg6 {[%clk 0:00:53.5]} 24... Rxg6 {[%clk 0:01:01.5]} 25. Nxh5
{[%clk 0:00:53.3]} 25... Bh3 {[%clk 0:00:54.7]} 26. Nf4 {[%clk 0:00:53.1]} 26...
Bf5 {[%clk 0:00:41.2]} 27. Nxg6+ {[%clk 0:00:52.2]} 27... Bxg6 {[%clk
0:00:43.1]} 28. Rde1 {[%clk 0:00:47.4]} 28... Kg8 {[%clk 0:00:44]} 29. Qg4
{[%clk 0:00:43.5]} 29... Qf6 {[%clk 0:00:39.2]} 30. Re8+ {[%clk 0:00:44.2]}
30... Rxe8 {[%clk 0:00:39.2]} 31. Rxe8+ {[%clk 0:00:46.1]} 31... Kh7 {[%clk
0:00:40.9]} 32. h5 {[%clk 0:00:37.8]} 32... Bd3 {[%clk 0:00:38]} 33. Re3 {[%clk
0:00:25.7]} 33... Bb1 {[%clk 0:00:29.5]} 34. a4 {[%clk 0:00:22.9]} 34... a5
{[%clk 0:00:30.6]} 35. Kh2 {[%clk 0:00:22.6]} 35... Bc2 {[%clk 0:00:31.4]} 36.
Kg3 {[%clk 0:00:20.1]} 36... Qa1 {[%clk 0:00:29.8]} 37. Kh2 {[%clk 0:00:19]}
37... Qf6 {[%clk 0:00:27.2]} 38. Kg3 {[%clk 0:00:19.9]} 38... Qa1 {[%clk
0:00:28]} 39. Kh2 {[%clk 0:00:21]} 39... Qf6 {[%clk 0:00:28.5]} 40. f4 {[%clk
0:00:18.1]} 40... c5 {[%clk 0:00:20.9]} 41. Qg5 {[%clk 0:00:14.6]} 41... Qd4
{[%clk 0:00:20.2]} 42. Rg3 {[%clk 0:00:14.5]} 42... b6 {[%clk 0:00:18.1]} 43. f5
{[%clk 0:00:13.6]} 43... Qf6 {[%clk 0:00:18.2]} 44. Qxf6 {[%clk 0:00:13.1]}
44... gxf6 {[%clk 0:00:20.1]} 45. Rf3 {[%clk 0:00:14.3]} 45... Be4 {[%clk
0:00:21.4]} 46. Re3 {[%clk 0:00:14]} 46... Bxd5 {[%clk 0:00:23.3]} 47. Rd3
{[%clk 0:00:15]} 47... Be4 {[%clk 0:00:18.6]} 48. Rxd6 {[%clk 0:00:15.9]} 48...
Bxf5 {[%clk 0:00:18.8]} 49. Rxf6 {[%clk 0:00:16.4]} 49... Bc2 {[%clk 0:00:20.7]}
50. Rxb6 {[%clk 0:00:17.1]} 50... Kg7 {[%clk 0:00:20.8]} 51. g4 {[%clk
0:00:17.8]} 51... f6 {[%clk 0:00:21.1]} 52. Kg3 {[%clk 0:00:18.8]} 52... c4
{[%clk 0:00:20.4]} 53. bxc4 {[%clk 0:00:19.3]} 53... Bxa4 {[%clk 0:00:22.3]} 54.
Ra6 {[%clk 0:00:19.9]} 54... Bb3 {[%clk 0:00:22.4]} 55. c5 {[%clk 0:00:21.1]}
55... a4 {[%clk 0:00:23.7]} 56. c6 {[%clk 0:00:22.5]} 56... Kh6 {[%clk
0:00:21.7]} 57. c7 {[%clk 0:00:22.7]} 57... Bd5 {[%clk 0:00:22.3]} 1-0

[Event "*** MasterClass Titled Tuesday Blitz"]
[Site "Chess.com"]
[Date "2017.12.05"]
[Round "2"]
[White "abubakrtagelsir"]
[Black "larso"]
[Result "0-1"]
[WhiteElo "2310"]
[BlackElo "2375"]
[TimeControl "180+2"]
[EndTime "14:38:08 PST"]
[Termination "larso won by resignation"]

1. e4 {[%clk 0:02:59.9]} 1... e6 {[%clk 0:03:01.9]} 2. d4 {[%clk 0:02:58.6]}
2... d5 {[%clk 0:03:03]} 3. Nc3 {[%clk 0:02:58.6]} 3... Bb4 {[%clk 0:03:02.7]}
4. e5 {[%clk 0:02:54.8]} 4... c5 {[%clk 0:03:03]} 5. a3 {[%clk 0:02:55.1]} 5...
Bxc3+ {[%clk 0:03:03]} 6. bxc3 {[%clk 0:02:55.4]} 6... Ne7 {[%clk 0:03:04.9]} 7.
Qg4 {[%clk 0:02:55]} 7... cxd4 {[%clk 0:03:01.9]} 8. Qxg7 {[%clk 0:02:54.3]}
8... Rg8 {[%clk 0:03:02.4]} 9. Qxh7 {[%clk 0:02:55.2]} 9... Qc7 {[%clk
0:03:03.7]} 10. Ne2 {[%clk 0:02:55.1]} 10... dxc3 {[%clk 0:02:55.7]} 11. f4
{[%clk 0:02:53.9]} 11... Nbc6 {[%clk 0:02:42.2]} 12. Qd3 {[%clk 0:02:52.7]}
12... d4 {[%clk 0:02:43.2]} 13. h4 {[%clk 0:02:37.4]} 13... Bd7 {[%clk
0:02:03.2]} 14. h5 {[%clk 0:02:37.4]} 14... O-O-O {[%clk 0:01:57.5]} 15. h6
{[%clk 0:02:35.2]} 15... Nf5 {[%clk 0:01:54.7]} 16. h7 {[%clk 0:02:35.3]} 16...
Rh8 {[%clk 0:01:42.1]} 17. g4 {[%clk 0:02:18.1]} 17... Nfe7 {[%clk 0:01:37.6]}
18. Rb1 {[%clk 0:02:11.8]} 18... Nd5 {[%clk 0:01:27.9]} 19. Bg2 {[%clk 0:02:09]}
19... Kb8 {[%clk 0:01:25.4]} 20. Nxd4 {[%clk 0:01:44.8]} 20... Nxd4 {[%clk
0:00:57.8]} 21. Qxd4 {[%clk 0:01:44.1]} 21... Bc6 {[%clk 0:00:59.7]} 22. Qf2
{[%clk 0:01:19.4]} 22... Ne7 {[%clk 0:00:59.4]} 23. Be3 {[%clk 0:01:13.3]} 23...
Ka8 {[%clk 0:00:26.5]} 24. Rb3 {[%clk 0:01:07.3]} 24... Bxg2 {[%clk 0:00:26.7]}
25. Qxg2 {[%clk 0:01:06.8]} 25... Nd5 {[%clk 0:00:27.1]} 26. Bc1 {[%clk
0:01:00.1]} 26... Qc4 {[%clk 0:00:28.2]} 27. Qe2 {[%clk 0:00:55.6]} 27... Qd4
{[%clk 0:00:28.4]} 28. Kf1 {[%clk 0:00:32.8]} 28... Nxf4 {[%clk 0:00:27.6]} 29.
Qf3 {[%clk 0:00:08.1]} 29... Qd1+ {[%clk 0:00:26.1]} 30. Kf2 {[%clk 0:00:09.3]}
30... Qxf3+ {[%clk 0:00:19.7]} 31. Kxf3 {[%clk 0:00:10.3]} 31... Ng6 {[%clk
0:00:21.6]} 32. Bf4 {[%clk 0:00:10]} 32... Rd4 {[%clk 0:00:22.5]} 33. Bg3 {[%clk
0:00:10.5]} 33... Rc4 {[%clk 0:00:23.7]} 34. Rd1 {[%clk 0:00:10.3]} 34... a6
{[%clk 0:00:24.3]} 35. Rh1 {[%clk 0:00:11]} 35... Nf8 {[%clk 0:00:24.1]} 36.
Rbb1 {[%clk 0:00:12]} 36... Rxh7 {[%clk 0:00:24.7]} 37. Rbd1 {[%clk 0:00:11.9]}
37... Rxh1 {[%clk 0:00:25]} 38. Rxh1 {[%clk 0:00:13]} 38... Ng6 {[%clk
0:00:26.9]} 39. Rh7 {[%clk 0:00:12.9]} 39... Rc7 {[%clk 0:00:22.9]} 40. Rg7
{[%clk 0:00:13.9]} 40... b5 {[%clk 0:00:23.7]} 41. g5 {[%clk 0:00:14.2]} 41...
Rd7 {[%clk 0:00:25]} 42. Kg4 {[%clk 0:00:15.2]} 42... Kb7 {[%clk 0:00:26.5]} 43.
Kh5 {[%clk 0:00:16.3]} 43... Kc6 {[%clk 0:00:28.1]} 44. Rg8 {[%clk 0:00:15.8]}
44... Kd5 {[%clk 0:00:29.3]} 45. Ra8 {[%clk 0:00:16.5]} 45... Nxe5 {[%clk
0:00:28]} 46. Bxe5 {[%clk 0:00:16.4]} 46... Kxe5 {[%clk 0:00:29.9]} 47. Rxa6
{[%clk 0:00:17.5]} 47... Kf5 {[%clk 0:00:31.1]} 48. Rb6 {[%clk 0:00:17.9]} 48...
Rd5 {[%clk 0:00:31.2]} 49. Rb7 {[%clk 0:00:18.6]} 49... Rd2 {[%clk 0:00:30.2]}
50. Rxf7+ {[%clk 0:00:19.3]} 50... Ke5 {[%clk 0:00:32.1]} 51. Kg6 {[%clk
0:00:20.5]} 51... Rxc2 {[%clk 0:00:33.3]} 52. Rc7 {[%clk 0:00:21.2]} 52... Kd4
{[%clk 0:00:34]} 53. Kg7 {[%clk 0:00:22.2]} 53... Rg2 {[%clk 0:00:34.7]} 54. g6
{[%clk 0:00:23]} 54... Kd3 {[%clk 0:00:36.6]} 55. Rd7+ {[%clk 0:00:21.4]} 55...
Ke3 {[%clk 0:00:37.7]} 56. Re7 {[%clk 0:00:20]} 56... c2 {[%clk 0:00:38.8]} 57.
Rxe6+ {[%clk 0:00:21.1]} 57... Kd2 {[%clk 0:00:40.3]} 58. Rd6+ {[%clk
0:00:22.1]} 58... Kc3 {[%clk 0:00:41.6]} 59. Rc6+ {[%clk 0:00:23.1]} 59... Kb2
{[%clk 0:00:43.1]} 60. Rc5 {[%clk 0:00:21.1]} 60... c1=Q {[%clk 0:00:44.4]} 61.
Rxb5+ {[%clk 0:00:18.2]} 61... Kxa3 {[%clk 0:00:44.9]} 62. Ra5+ {[%clk 0:00:19]}
62... Kb4 {[%clk 0:00:45.8]} 63. Ra6 {[%clk 0:00:19]} 63... Qc3+ {[%clk
0:00:47]} 64. Kf7 {[%clk 0:00:19.7]} 64... Qc4+ {[%clk 0:00:48]} 65. Kg7 {[%clk
0:00:20.2]} 65... Qxa6 {[%clk 0:00:47.8]} 0-1

[Event "*** MasterClass Titled Tuesday Blitz"]
[Site "Chess.com"]
[Date "2017.12.05"]
[Round "2"]
[White "luisgui16"]
[Black "sandager"]
[Result "1-0"]
[WhiteElo "2303"]
[BlackElo "1989"]
[TimeControl "180+2"]
[EndTime "14:38:08 PST"]
[Termination "luisgui16 won by resignation"]

1. e4 {[%clk 0:02:57.3]} 1... e5 {[%clk 0:03:00.5]} 2. Nf3 {[%clk 0:02:58.2]}
2... Nc6 {[%clk 0:03:01.4]} 3. d4 {[%clk 0:02:59.1]} 3... exd4 {[%clk
0:03:01.4]} 4. Nxd4 {[%clk 0:03:01]} 4... Nf6 {[%clk 0:03:01.9]} 5. Nxc6 {[%clk
0:03:00.6]} 5... bxc6 {[%clk 0:03:02.5]} 6. e5 {[%clk 0:03:01.7]} 6... Qe7
{[%clk 0:03:03.5]} 7. Qe2 {[%clk 0:03:02.3]} 7... Nd5 {[%clk 0:03:04.6]} 8. c4
{[%clk 0:03:02.8]} 8... Ba6 {[%clk 0:03:05.2]} 9. b3 {[%clk 0:03:03.7]} 9... g6
{[%clk 0:03:04.1]} 10. Bb2 {[%clk 0:03:04.3]} 10... Bg7 {[%clk 0:03:03.2]} 11.
g3 {[%clk 0:03:05.4]} 11... O-O {[%clk 0:03:00.7]} 12. Bg2 {[%clk 0:03:06.3]}
12... Rfe8 {[%clk 0:02:49.9]} 13. O-O {[%clk 0:03:06.4]} 13... d6 {[%clk
0:02:27.8]} 14. Qd2 {[%clk 0:02:44.3]} 14... Bxe5 {[%clk 0:02:11]} 15. cxd5
{[%clk 0:02:26.9]} 15... Bxb2 {[%clk 0:02:05]} 16. Qxb2 {[%clk 0:02:26]} 16...
Bxf1 {[%clk 0:02:05.4]} 17. Bxf1 {[%clk 0:02:27.9]} 17... cxd5 {[%clk
0:02:03.9]} 18. Nd2 {[%clk 0:02:22.8]} 18... c5 {[%clk 0:02:01.5]} 19. Bg2
{[%clk 0:02:20.5]} 19... Qe6 {[%clk 0:01:56.5]} 20. Nf1 {[%clk 0:02:14.9]} 20...
Rad8 {[%clk 0:01:53.7]} 21. Ne3 {[%clk 0:02:13.3]} 21... d4 {[%clk 0:01:54.4]}
22. Nd5 {[%clk 0:02:14]} 22... Qe2 {[%clk 0:01:50.7]} 23. Qa3 {[%clk 0:01:51.4]}
23... Kg7 {[%clk 0:01:43.6]} 24. Qxa7 {[%clk 0:01:48]} 24... Ra8 {[%clk
0:01:36]} 25. Qb6 {[%clk 0:01:35]} 25... Qb2 {[%clk 0:01:11.1]} 26. Rf1 {[%clk
0:01:30.8]} 26... Re2 {[%clk 0:00:55.2]} 27. Qxd6 {[%clk 0:01:27.2]} 27... d3
{[%clk 0:00:55.8]} 28. Nf4 {[%clk 0:01:18.3]} 28... Rxa2 {[%clk 0:00:53.9]} 29.
Nxd3 {[%clk 0:00:43.2]} 29... Qd2 {[%clk 0:00:51.8]} 30. Qd5 {[%clk 0:00:33.9]}
30... Rc2 {[%clk 0:00:34.2]} 31. h4 {[%clk 0:00:23.4]} 31... Qc3 {[%clk
0:00:33.5]} 32. Nf4 {[%clk 0:00:18.9]} 32... Red2 {[%clk 0:00:31.7]} 33. Qg5
{[%clk 0:00:15.2]} 33... Qd4 {[%clk 0:00:30.7]} 34. h5 {[%clk 0:00:11.9]} 34...
Rxf2 {[%clk 0:00:29.3]} 35. h6+ {[%clk 0:00:12.4]} 35... Kf8 {[%clk 0:00:29.2]}
36. Rxf2 {[%clk 0:00:13.2]} 36... Qxf2+ {[%clk 0:00:28.5]} 37. Kh2 {[%clk
0:00:13.8]} 37... Qd4 {[%clk 0:00:22.9]} 38. Nd5 {[%clk 0:00:09.5]} 38... f6
{[%clk 0:00:14.6]} 39. Nxf6 {[%clk 0:00:06.8]} 39... Kf7 {[%clk 0:00:11.8]} 40.
Nxh7 {[%clk 0:00:06.9]} 40... Qe4 {[%clk 0:00:09.3]} 41. Qf4+ {[%clk 0:00:06.4]}
41... Qxf4 {[%clk 0:00:09.8]} 42. gxf4 {[%clk 0:00:08.3]} 42... Rc3 {[%clk
0:00:10.7]} 43. Ng5+ {[%clk 0:00:09.3]} 43... Kg8 {[%clk 0:00:10.3]} 44. Kg1
{[%clk 0:00:09.7]} 44... Kh8 {[%clk 0:00:10.7]} 45. Bd5 {[%clk 0:00:10.6]} 45...
Re3 {[%clk 0:00:08.5]} 46. Kf2 {[%clk 0:00:10.8]} 46... Rc3 {[%clk 0:00:08.5]}
47. Bc4 {[%clk 0:00:11.3]} 47... Rxb3 {[%clk 0:00:05.3]} 48. Bxb3 {[%clk
0:00:10.7]} 48... c4 {[%clk 0:00:06.1]} 49. Bc2 {[%clk 0:00:11.9]} 49... c3
{[%clk 0:00:07.1]} 50. Bxg6 {[%clk 0:00:12.5]} 50... c2 {[%clk 0:00:07.3]} 51.
Bxc2 {[%clk 0:00:12.6]} 51... Kg8 {[%clk 0:00:08.2]} 52. h7+ {[%clk 0:00:13.8]}
52... Kg7 {[%clk 0:00:07.8]} 53. Nf7 {[%clk 0:00:14.8]} 53... Kxf7 {[%clk
0:00:06.6]} 54. h8=Q {[%clk 0:00:15.8]} 54... Ke6 {[%clk 0:00:07.3]} 55. f5+
{[%clk 0:00:16.7]} 1-0

[Event "*** MasterClass Titled Tuesday Blitz"]
[Site "Chess.com"]
[Date "2017.12.05"]
[Round "2"]
[White "PulpanJ"]
[Black "GMBenjaminBok"]
[Result "0-1"]
[WhiteElo "2415"]
[BlackElo "2601"]
[TimeControl "180+2"]
[EndTime "14:38:13 PST"]
[Termination "GMBenjaminBok won by resignation"]

1. e4 {[%clk 0:01:24]} 1... c5 {[%clk 0:02:58.9]} 2. Nf3 {[%clk 0:01:25.2]} 2...
d6 {[%clk 0:02:59.3]} 3. d4 {[%clk 0:01:26.3]} 3... cxd4 {[%clk 0:03:00.6]} 4.
Nxd4 {[%clk 0:01:27.7]} 4... Nf6 {[%clk 0:03:02]} 5. Nc3 {[%clk 0:01:28.8]} 5...
a6 {[%clk 0:03:03.3]} 6. Be2 {[%clk 0:01:27.7]} 6... e5 {[%clk 0:03:02.8]} 7.
Nb3 {[%clk 0:01:27.3]} 7... Be7 {[%clk 0:03:03.5]} 8. O-O {[%clk 0:01:24.4]}
8... O-O {[%clk 0:03:04.6]} 9. Qd3 {[%clk 0:01:21.6]} 9... Be6 {[%clk
0:03:03.2]} 10. Nd5 {[%clk 0:01:20.2]} 10... Bxd5 {[%clk 0:03:01.5]} 11. exd5
{[%clk 0:01:20.4]} 11... Nbd7 {[%clk 0:03:02.8]} 12. c4 {[%clk 0:01:20.7]} 12...
Ne8 {[%clk 0:03:02]} 13. Bg4 {[%clk 0:01:20.1]} 13... g6 {[%clk 0:03:01.8]} 14.
Bh6 {[%clk 0:01:10.4]} 14... Ng7 {[%clk 0:03:02.2]} 15. Bxg7 {[%clk 0:00:36.3]}
15... Kxg7 {[%clk 0:03:02.2]} 16. Bxd7 {[%clk 0:00:36]} 16... Qxd7 {[%clk
0:03:04.1]} 17. f4 {[%clk 0:00:37.9]} 17... Bf6 {[%clk 0:02:41]} 18. f5 {[%clk
0:00:33.5]} 18... e4 {[%clk 0:02:41.8]} 19. Qxe4 {[%clk 0:00:31.8]} 19... Bxb2
{[%clk 0:02:41.5]} 20. Qg4 {[%clk 0:00:29.3]} 20... f6 {[%clk 0:02:16.7]} 21.
Rae1 {[%clk 0:00:28.9]} 21... Rae8 {[%clk 0:02:14.2]} 22. Re6 {[%clk 0:00:29]}
22... Be5 {[%clk 0:02:07.6]} 23. Re1 {[%clk 0:00:27]} 23... Rxe6 {[%clk
0:01:58.6]} 24. dxe6 {[%clk 0:00:22.7]} 24... Qc7 {[%clk 0:01:58.3]} 25. Nd2
{[%clk 0:00:15.9]} 25... Rc8 {[%clk 0:01:57]} 26. Kh1 {[%clk 0:00:14.9]} 26...
Qa5 {[%clk 0:01:56.9]} 27. Nf3 {[%clk 0:00:15.6]} 27... Qc3 {[%clk 0:01:43]} 28.
fxg6 {[%clk 0:00:14.9]} 28... hxg6 {[%clk 0:01:44.5]} 29. e7 {[%clk 0:00:16.4]}
29... f5 {[%clk 0:01:23.6]} 30. Qh4 {[%clk 0:00:17.4]} 30... Bf6 {[%clk
0:01:08.7]} 31. Qh3 {[%clk 0:00:14]} 31... Re8 {[%clk 0:01:05.5]} 32. Qg3 {[%clk
0:00:11.5]} 32... Rxe7 {[%clk 0:01:03.5]} 33. Rd1 {[%clk 0:00:12.9]} 33... Qxc4
{[%clk 0:01:00.9]} 34. Qxd6 {[%clk 0:00:13.8]} 34... Qxa2 {[%clk 0:01:01.4]} 35.
h3 {[%clk 0:00:14.2]} 35... a5 {[%clk 0:00:59.5]} 36. Qb8 {[%clk 0:00:15.6]}
36... a4 {[%clk 0:00:55.3]} 37. Rd8 {[%clk 0:00:17.1]} 37... Qa1+ {[%clk
0:00:55.5]} 38. Kh2 {[%clk 0:00:18.3]} 38... Be5+ {[%clk 0:00:56.2]} 39. Nxe5
{[%clk 0:00:19.9]} 39... Qxe5+ {[%clk 0:00:57.3]} 40. Qxe5+ {[%clk 0:00:20.1]}
40... Rxe5 {[%clk 0:00:58.3]} 41. Rd7+ {[%clk 0:00:22]} 41... Kf6 {[%clk
0:00:54.4]} 42. Rxb7 {[%clk 0:00:22.4]} 42... Ra5 {[%clk 0:00:55.7]} 43. Rb2
{[%clk 0:00:24.1]} 43... a3 {[%clk 0:00:56]} 44. Ra2 {[%clk 0:00:26]} 44... Ke5
{[%clk 0:00:57.2]} 45. Kg3 {[%clk 0:00:27.8]} 45... g5 {[%clk 0:00:51.3]} 46. h4
{[%clk 0:00:29.2]} 46... gxh4+ {[%clk 0:00:41.1]} 47. Kxh4 {[%clk 0:00:30.7]}
47... Kd4 {[%clk 0:00:38.9]} 48. Kg5 {[%clk 0:00:32]} 48... Kc4 {[%clk
0:00:39.3]} 49. g3 {[%clk 0:00:29.5]} 49... Kb3 {[%clk 0:00:39.6]} 50. Ra1
{[%clk 0:00:30.3]} 50... a2 {[%clk 0:00:40.6]} 51. Rf1 {[%clk 0:00:30]} 51...
a1=Q {[%clk 0:00:34.5]} 52. Rxa1 {[%clk 0:00:30.6]} 52... Rxa1 {[%clk
0:00:36.1]} 53. Kxf5 {[%clk 0:00:31.8]} 53... Kc4 {[%clk 0:00:34.1]} 54. g4
{[%clk 0:00:32.9]} 54... Kd5 {[%clk 0:00:34.8]} 55. g5 {[%clk 0:00:31]} 55...
Rf1+ {[%clk 0:00:34.8]} 56. Kg6 {[%clk 0:00:32.9]} 56... Ke6 {[%clk 0:00:35.7]}
57. Kh7 {[%clk 0:00:34]} 57... Rh1+ {[%clk 0:00:32.6]} 58. Kg6 {[%clk
0:00:35.2]} 58... Rg1 {[%clk 0:00:33.9]} 59. Kh7 {[%clk 0:00:32.5]} 59... Rxg5
{[%clk 0:00:33.5]} 0-1

[Event "*** MasterClass Titled Tuesday Blitz"]
[Site "Chess.com"]
[Date "2017.12.05"]
[Round "2"]
[White "Grebeniuk-S"]
[Black "Oneofmyturns"]
[Result "0-1"]
[WhiteElo "2397"]
[BlackElo "2537"]
[TimeControl "180+2"]
[EndTime "14:38:14 PST"]
[Termination "Oneofmyturns won by resignation"]

1. d4 {[%clk 0:03:00.6]} 1... Nf6 {[%clk 0:03:00.3]} 2. Nf3 {[%clk 0:03:02]}
2... d5 {[%clk 0:03:00.6]} 3. e3 {[%clk 0:03:01.8]} 3... c5 {[%clk 0:02:59.6]}
4. c3 {[%clk 0:03:02.5]} 4... e6 {[%clk 0:02:58.7]} 5. Bd3 {[%clk 0:03:02.5]}
5... Nc6 {[%clk 0:03:00.2]} 6. Nbd2 {[%clk 0:03:03.8]} 6... Be7 {[%clk
0:03:00.6]} 7. O-O {[%clk 0:03:05.3]} 7... O-O {[%clk 0:03:01.2]} 8. dxc5 {[%clk
0:03:06.9]} 8... Bxc5 {[%clk 0:03:01.9]} 9. e4 {[%clk 0:03:08.4]} 9... h6 {[%clk
0:03:03.5]} 10. h3 {[%clk 0:03:03]} 10... a6 {[%clk 0:03:02.7]} 11. Qc2 {[%clk
0:03:03.3]} 11... Qc7 {[%clk 0:03:01.3]} 12. exd5 {[%clk 0:03:01.2]} 12... exd5
{[%clk 0:03:00.6]} 13. Nb3 {[%clk 0:03:01.9]} 13... Bd6 {[%clk 0:02:58.6]} 14.
Be3 {[%clk 0:03:01.8]} 14... Re8 {[%clk 0:02:54.2]} 15. Rfe1 {[%clk 0:03:00.3]}
15... Ne4 {[%clk 0:02:54.5]} 16. Nbd4 {[%clk 0:02:54.8]} 16... Bd7 {[%clk
0:02:26.6]} 17. Rad1 {[%clk 0:02:55.3]} 17... Re7 {[%clk 0:02:23.9]} 18. Nxc6
{[%clk 0:02:43.1]} 18... bxc6 {[%clk 0:02:21.6]} 19. c4 {[%clk 0:02:44.2]} 19...
Ree8 {[%clk 0:01:34.1]} 20. cxd5 {[%clk 0:02:18.2]} 20... cxd5 {[%clk 0:01:36]}
21. Bxe4 {[%clk 0:02:03.9]} 21... Rxe4 {[%clk 0:01:28.7]} 22. Qxc7 {[%clk
0:02:01.5]} 22... Bxc7 {[%clk 0:01:30.6]} 23. Rxd5 {[%clk 0:02:02.6]} 23... Be6
{[%clk 0:01:32.1]} 24. Rd4 {[%clk 0:01:32.1]} 24... Rxd4 {[%clk 0:01:29.3]} 25.
Nxd4 {[%clk 0:01:33.9]} 25... Bxa2 {[%clk 0:01:30.6]} 26. b3 {[%clk 0:01:27.2]}
26... Rb8 {[%clk 0:00:30.1]} 27. Rc1 {[%clk 0:01:06.5]} 27... Rb7 {[%clk
0:00:18.4]} 28. g3 {[%clk 0:00:51.1]} 28... Be5 {[%clk 0:00:13.7]} 29. Nc6
{[%clk 0:00:49.2]} 29... Bf6 {[%clk 0:00:11.6]} 30. Na5 {[%clk 0:00:34.1]} 30...
Rb5 {[%clk 0:00:10.7]} 31. Bd2 {[%clk 0:00:32.8]} 31... Bxb3 {[%clk 0:00:08.2]}
32. Nxb3 {[%clk 0:00:28.6]} 32... Rxb3 {[%clk 0:00:10.1]} 33. Rc8+ {[%clk
0:00:29.9]} 33... Kh7 {[%clk 0:00:10.6]} 34. Ra8 {[%clk 0:00:31.8]} 34... Ra3
{[%clk 0:00:10.6]} 35. Bb4 {[%clk 0:00:30.6]} 35... Ra2 {[%clk 0:00:11.1]} 36.
Be1 {[%clk 0:00:22.6]} 36... Bd4 {[%clk 0:00:11.1]} 37. Kf1 {[%clk 0:00:23.5]}
37... Ra1 {[%clk 0:00:08]} 38. Ke2 {[%clk 0:00:23]} 38... a5 {[%clk 0:00:06.5]}
39. Bxa5 {[%clk 0:00:10.2]} 39... Ra2+ {[%clk 0:00:06.8]} 40. Kd3 {[%clk
0:00:10.8]} 40... Bb6 {[%clk 0:00:07.6]} 41. Bxb6 {[%clk 0:00:09.9]} 41... Rxa8
{[%clk 0:00:09.5]} 42. Be3 {[%clk 0:00:11.8]} 42... Kg6 {[%clk 0:00:11.2]} 43.
Ke4 {[%clk 0:00:12.2]} 43... h5 {[%clk 0:00:12.8]} 44. Kf3 {[%clk 0:00:14.1]}
44... Kf5 {[%clk 0:00:12.8]} 45. g4+ {[%clk 0:00:14.9]} 45... hxg4+ {[%clk
0:00:14.7]} 46. hxg4+ {[%clk 0:00:16.8]} 46... Ke5 {[%clk 0:00:15.9]} 47. Bf4+
{[%clk 0:00:18]} 47... Kd5 {[%clk 0:00:17.3]} 48. Be3 {[%clk 0:00:19.1]} 48...
Ra4 {[%clk 0:00:18.1]} 49. Kg3 {[%clk 0:00:20]} 49... Ke4 {[%clk 0:00:20]} 50.
Bc5 {[%clk 0:00:21.1]} 50... Rc4 {[%clk 0:00:19.4]} 51. Bf8 {[%clk 0:00:21.6]}
51... Rc3+ {[%clk 0:00:20.6]} 52. Kg2 {[%clk 0:00:22.2]} 52... g6 {[%clk
0:00:19.3]} 53. Bd6 {[%clk 0:00:23.5]} 53... Rd3 {[%clk 0:00:19.6]} 54. Bb8
{[%clk 0:00:24.6]} 54... f5 {[%clk 0:00:20.3]} 55. gxf5 {[%clk 0:00:25.5]} 55...
gxf5 {[%clk 0:00:22.2]} 56. Bc7 {[%clk 0:00:25.7]} 56... f4 {[%clk 0:00:20.2]}
57. Bb6 {[%clk 0:00:26.8]} 57... f3+ {[%clk 0:00:20.1]} 58. Kg3 {[%clk
0:00:27.8]} 58... Rd6 {[%clk 0:00:21]} 59. Be3 {[%clk 0:00:28.9]} 59... Rg6+
{[%clk 0:00:22.3]} 60. Kh4 {[%clk 0:00:30.4]} 60... Kd3 {[%clk 0:00:23.1]} 61.
Kh5 {[%clk 0:00:27.8]} 61... Rg2 {[%clk 0:00:22.8]} 62. Kh4 {[%clk 0:00:28.7]}
62... Ke2 {[%clk 0:00:23.7]} 63. Bc5 {[%clk 0:00:29.8]} 63... Rxf2 {[%clk
0:00:24.1]} 64. Kg3 {[%clk 0:00:31]} 64... Rg2+ {[%clk 0:00:25]} 65. Kh3 {[%clk
0:00:32]} 65... Rg5 {[%clk 0:00:25.2]} 0-1